Cogmind - Beta 9.6 @@@ ROGUE MODE // 2020.07.10 @ 04:48:41 Player: GGOBC-006 Result: Destroyed by YI-UF0 with YI-UF0's Doublenader Performance ------------- Evolutions (0) 0 Regions Visited (2) 400 Robots Destroyed (37) 185 Value Destroyed (658) 658 Prototype IDs (0) 0 Alien Tech Used (0) 0 Bonus (0) 0 TOTAL SCORE: 1243 Bonus ------- None Cogmind --------- Core Integrity 0/250 Matter 290/300 Energy 250/250 System Corruption 1% Temperature Cool (0) Movement Walking (120) Location -10/Mines Parts ------- > --- POWER (1) -------- Ion Engine > --- PROPULSION (2) --- Aluminum Leg Aluminum Leg > --- UTILITY (2) ------ Heat Sink Improved Signal Interpreter > --- WEAPON (2) ------- Assault Rifle > --- INVENTORY (4) ---- Improved Ion Engine Aluminum Leg Shield Generator Grenade Launcher Peak State ------------ > --- POWER ------------ Ion Engine > --- PROPULSION ------- Wheel Wheel > --- UTILITY ---------- Improved Terrain Scanner Seismic Analyzer > --- WEAPON ----------- Spread Laser Light Assault Rifle > --- INVENTORY -------- Light Ion Engine Aluminum Leg Wheel Spread Laser [Rating: 9] Favorites ----------- Power Ion Engine Engine Ion Engine Propulsion Aluminum Leg Leg Aluminum Leg Wheel Wheel Utility Heat Sink Device Heat Sink Processor Improved Signal Interpreter Weapon Spread Laser Energy Gun Spread Laser Ballistic Gun Light Assault Rifle Build | -11 -10 -10 ------- Run | Scr Mat Min Slots Evolved . | . . . Power . | . . . Propulsion . | . . . Utility . | . . . Weapon . | . . . Parts Attached 38 | 14 17 7 Power 6 | 2 2 2 Engine 6 | 2 2 2 Core . | . . . Reactor . | . . . Propulsion 16 | 5 8 3 Treads . | . . . Leg 8 | . 5 3 Wheel 8 | 5 3 . Hover . | . . . Flight . | . . . Utility 9 | 5 3 1 Device 5 | 2 2 1 Storage . | . . . Processor 4 | 3 1 . Hackware . | . . . Protection . | . . . Artifact . | . . . Weapon 7 | 2 4 1 Energy Gun 3 | 1 2 . Energy Cannon . | . . . Ballistic Gun 4 | 1 2 1 Ballistic Cannon . | . . . Launcher . | . . . Special Weapon . | . . . Impact Weapon . | . . . Slashing Weapon . | . . . Piercing Weapon . | . . . Special Melee Weapon . | . . . Unidentified Prototypes . | . . . Parts Lost 8 | . 7 1 Power 1 | . 1 . Propulsion 3 | . 3 . Utility . | . . . Weapon 4 | . 3 1 Highest Loss Streak 3 | . 3 1 Average Slot Usage (%) 89 | . 88 90 Engine 13 | . 13 14 Leg 13 | . 6 28 Wheel 11 | . 17 . Device 14 | . 14 14 Processor 12 | . 12 14 Energy Gun 11 | . 9 13 Ballistic Gun 10 | . 13 5 Naked Turns . | . . . Heaviest Build 12 | 8 12 11 Greatest Support 26 | 26 26 20 Greatest Overweight (x) . | . . . Average Overweight (x) . | . . . Largest Inventory Capacity 4 | 4 4 4 Average Capacity 4 | 4 4 4 Most Carried 4 | 4 4 4 Average Carried 3 | 3 3 3 Final Capacity 4 | 4 4 4 Final Carried 4 | 4 4 4 Class Distribution -------------------- 75% | Mutant 24% | Scavenger-Mutant Dominant Class ---------------- Mutant | -10/Materials Scavenger-Mutant | -10/Mines Resources | -11 -10 -10 ----------- Run | Scr Mat Min Matter Collected 760 | 357 333 70 Remotely . | . . . Salvage Created 1115 | 300 678 137 Parts 85 | 35 47 3 Haulers Intercepted 1 | . 1 . Recyclers Shooed 4 | . 3 1 Parts Field Recycled . | . . . Retrieved Matter . | . . . Parts Self-Destructed . | . . . Prevented . | . . . Kills | -11 -10 -10 ------- Run | Scr Mat Min Combat Hostiles Destroyed 18 | . 15 3 Guns 18 | . 15 3 Classes Destroyed 8 | 3 4 1 Worker 4 | 2 2 . Tunneler 7 | 7 . . Hauler 1 | . 1 . Recycler 4 | 1 2 1 Operator 3 | . 3 . Swarmer 5 | . 5 . Grunt 12 | . 10 2 Assembled 1 | . . 1 Best Kill Streak 6 | 4 6 3 Combat Bots Only 4 | . 4 2 Max Kills in Single Turn 1 | 1 1 1 Gunslinging . | . . . Exploded . | . . . Melee . | . . . Uniques/NPCs Destroyed . | . . . Combat | -11 -10 -10 -------- Run | Scr Mat Min Damage Taken 1207 | . 786 421 Core 258 | . 189 69 Absorbed by Shields . | . . . Core Remaining (%) 100 | 100 . . Volleys Fired 162 | 17 119 26 Largest 2 | 2 2 2 Hottest 85 | 60 85 85 Shots Fired 249 | 34 187 28 Gun 249 | 34 187 28 Cannon . | . . . Launcher . | . . . Special . | . . . Kinetic 131 | 17 109 5 Thermal 118 | 17 78 23 Explosive . | . . . Electromagnetic . | . . . Robot Hit Streak 12 | 6 12 5 Robot Miss Streak 8 | 1 8 6 Penetration Max . | . . . Secondary Targets . | . . . Shots Hit Robots 157 | 19 111 27 Core Hits 107 | 12 71 24 Critical Hits 1 | . 1 . Critical Kills 1 | . 1 . Critical Parts Destroyed . | . . . Melee Attacks . | . . . Impact . | . . . Slashing . | . . . Piercing . | . . . Sneak Attacks . | . . . Combat Hostiles . | . . . Follow-up Attacks . | . . . Damage Inflicted 1448 | 213 917 318 Guns 1448 | 213 917 318 Cannons . | . . . Explosions . | . . . Melee . | . . . Ramming . | . . . Kinetic 602 | 44 501 57 Thermal 846 | 169 416 261 Explosive . | . . . Electromagnetic . | . . . Impact . | . . . Slashing . | . . . Piercing . | . . . Highest Corruption 1 | . 1 1 Average Corruption 1 | . 1 1 Corruption Purged . | . . . Effects 9 | . 6 3 Message Errors 7 | . 5 2 Targeting Errors 2 | . 1 1 Overload Shots . | . . . Overflow Damage . | . . . Projectiles . | . . . Explosions . | . . . Melee . | . . . Knockbacks . | . . . Impact . | . . . Kinetic . | . . . Secondary . | . . . Self-Inflicted Damage . | . . . Shots . | . . . Rammed . | . . . Targets Rammed . | . . . Kicked . | . . . Crushed . | . . . Highest Temperature 454 | 40 454 32 Average Temperature 87 | 18 111 14 Received Heat Transfer 357 | . 309 48 Effects 4 | . 4 . Shutdowns 2 | . 2 . Energy Bleed 1 | . 1 . Short Circuit 1 | . 1 . Siege Activations . | . . . Robots Corrupted . | . . . Combat Hostiles . | . . . Parts Fried . | . . . Impact Corruptions . | . . . Robots Melted . | . . . Combat Hostiles . | . . . Parts Melted . | . . . Heat Transferred 1220 | 375 515 330 Parts Sabotaged . | . . . Parts Stolen . | . . . Parts Stripped . | . . . Power Chain Reactions . | . . . Missiles Intercepted . | . . . Alert | -11 -10 -10 ------- Run | Scr Mat Min Peak Influence 252 | 50 252 121 Average Influence 85 | 24 115 50 Maximum Alert Level 1 | . 1 . Low Security (%) 94 | 100 91 100 Level 1 5 | . 8 . Level 2 . | . . . Level 3 . | . . . Level 4 . | . . . Level 5 . | . . . High Security . | . . . Max Security . | . . . Squads Dispatched 7 | . 7 . Investigation 4 | . 4 . Extermination . | . . . Reinforcement 3 | . 3 . Assault . | . . . Garrison . | . . . Intercept . | . . . Construction Impeded . | . . . Haulers Reinforced . | . . . Stealth | -11 -10 -10 --------- Run | Scr Mat Min Distress Signals 1 | . 1 . Communications Jammed . | . . . Distress Signals . | . . . Times Spotted 41 | . 34 7 Peak Tracking Total 5 | . 5 3 Tactical Retreats 2 | . . 2 Traps | -11 -10 -10 ------- Run | Scr Mat Min Traps Triggered 2 | . 2 . Indirectly . | . . . Trap Hack Attempts . | . . . Triggered . | . . . Disarmed . | . . . Reprogrammed . | . . . Reused . | . . . Traps Extracted . | . . . Installed . | . . . Triggered . | . . . Machines | -11 -10 -10 ---------- Run | Scr Mat Min Machines Disabled . | . . . Max in Single Turn . | . . . Machines Sabotaged 1 | . 1 . Garrisons Compromised . | . . . Overloaded Fab Kills . | . . . Fab Network Shutdowns . | . . . Hacking | -11 -10 -10 --------- Run | Scr Mat Min Machines Accessed 8 | . 8 . Terminals 6 | . 6 . Fabricators . | . . . Repair Stations 1 | . 1 . Recycling Units 1 | . 1 . Scanalyzers . | . . . Garrison Access . | . . . Total Hacks 21 | . 21 . Successful 13 | . 13 . Failed 8 | . 8 . Catastrophic 2 | . 2 . Database Lockouts . | . . . Manual 16 | . 16 . Terminals 17 | . 17 . Fabricators . | . . . Repair Stations 2 | . 2 . Recycling Units 2 | . 2 . Scanalyzers . | . . . Garrison Access . | . . . Terminal Hacks . | . . . Fabricator Hacks . | . . . Repair Station Hacks 2 | . 2 . Scan Component 1 | . 1 . Repair 1 | . 1 . Recycling Unit Hacks 1 | . 1 . Report Inventory 1 | . 1 . Scanalyzer . | . . . Garrison Access Hacks . | . . . Unauthorized Hacks 10 | . 10 . Terminals 9 | . 9 . Track 1 | . 1 . Botnet 5 | . 5 . Disrupt 1 | . 1 . Operators 1 | . 1 . Sabotage 1 | . 1 . Fabricators . | . . . Repair Stations . | . . . Recycling Units 1 | . 1 . Tunnel 1 | . 1 . Scanalyzers . | . . . Garrison Access . | . . . Data Cores Recovered . | . . . Used . | . . . Hacking Detections 6 | . 6 . Full Trace Events 1 | . 1 . Feedback Events . | . . . Feedback Blocked . | . . . Robot Schematics Acquired . | . . . Robots Built . | . . . Matter . | . . . Time . | . . . Total Robot Build Rating . | . . . Part Schematics Acquired . | . . . Parts Built . | . . . Matter . | . . . Time . | . . . Total Part Build Rating . | . . . Parts Repaired 1 | . 1 . Time 13 | . 13 . Parts Recycled . | . . . Recycled Matter . | . . . Retrieved Matter . | . . . Retrieved Components . | . . . Parts Scanalyzed . | . . . Part Schematics Acquired . | . . . Parts Damaged . | . . . Bothacking | -11 -10 -10 ------------ Run | Scr Mat Min Used RIF Installer . | . . . Robots Hacked . | . . . Non-combat . | . . . Combat . | . . . Robot Hacks Applied . | . . . Relay Couplers Released . | . . . Robots Rewired . | . . . Allies Hacked . | . . . Hacks Repelled . | . . . Allies | -11 -10 -10 -------- Run | Scr Mat Min Total Allies . | . . . Largest Group . | . . . Highest-Rated Group . | . . . Highest-Rated Ally . | . . . Total Orders . | . . . Ally Attacks . | . . . Total Damage . | . . . Kills . | . . . Allies Corrupted . | . . . Allies Melted . | . . . Intel | -11 -10 -10 ------- Run | Scr Mat Min Robot Analysis Total . | . . . Derelict Logs Recovered . | . . . Drone Launches . | . . . Drone Recoveries . | . . . Exploration | -11 -10 -10 ------------- Run | Scr Mat Min Turns Passed 2202 | 256 1273 673 Spaces Moved 1300 | 141 899 260 Core 4 | 4 . . Treads . | . . . Legs 548 | . 288 260 Wheels 748 | 137 611 . Hover . | . . . Flight . | . . . Fastest Speed 50 | 50 80 120 Average Speed 99 | 82 95 120 Slowest Speed 120 | 100 120 120 Overloaded Moves . | . . . Propulsion Burnouts . | . . . Robots Hopped . | . . . Cave-ins Triggered . | . . . Exploration Rate (%) 49 | 6 98 45 Regions Visited 2 Branch Regions 1 Pre-discovered Areas 1 | . 1 . Known Exits Taken 1 | . 1 . Unknown Exits Taken 1 | 1 . . Scrap Searched 2 | . . 2 Spaces Dug . | . . . Terrain Destroyed . | . . . Melee . | . . . Projectile . | . . . AOE . | . . . Actions | -11 -10 -10 --------- Run | Scr Mat Min Total 1983 | 248 1138 597 Wait 452 | 66 90 296 Move 1298 | 140 898 260 Hop . | . . . Pick Up 9 | 5 3 1 Fast Attach 15 | 7 7 1 Attach 1 | . 1 . Detach . | . . . Swap 22 | 7 9 6 Drop 24 | 6 11 7 Fire 162 | 17 119 26 Melee . | . . . Ram . | . . . Kick . | . . . Crush . | . . . Escape Stasis . | . . . Rewire . | . . . Trap . | . . . Miscellaneous . | . . . Route ------- -11/Scrapyard -10/Materials (discovered 4 exits: *Mat x3 / *Min) -10/Mines History --------- Turn | Location | Event 39 | -11/Scrapyard | Discovered new exit (range 15) 257 | -11/Scrapyard | Entered Materials 302 | -10/Materials | Build established: Mutant 349 | -10/Materials | Discovered new exit (range 10) 358 | -10/Materials | Discovered new exit (range 13) 584 | -10/Materials | Repaired Wheel 862 | -10/Materials | Discovered new exit (range 16) 881 | -10/Materials | Identified exit to Materials 991 | -10/Materials | Core integrity fell below 50% 1165 | -10/Materials | Discovered exit to Materials (range 11) 1178 | -10/Materials | Lost 3 parts (1n2w) 1529 | -10/Materials | Identified exit to Mines 1530 | -10/Materials | Entered Mines 1599 | -10/Mines | Excavation squad dispatched 1599 | -10/Mines | A large section of the Mines collapsed 1804 | -10/Mines | Core integrity fell below 20% 1849 | -10/Mines | Excavation squad dispatched 2014 | -10/Mines | Assisted by bots powering up and referring to "LRC-V3" 2075 | -10/Mines | Build established: Scavenger-Mutant 2099 | -10/Mines | Excavation squad dispatched 2203 | -10/Mines | Destroyed by YI-UF0 with YI-UF0's Doublenader Last Messages --------------- U-05 Engineer builds a Wall. K-01 Serf collects debris. U-05 Engineer lays Concrete. K-01 Serf collects debris. The unstable cave ceiling collapses. YI-UF0: "BADABOOM!" T-07 Excavator destroyed. U-05 Engineer builds a Wall. YI-UF0: "BLAM!" YI-UF0 mumbles something. U-05 Engineer lays Concrete. U-05 Engineer destroyed. U-05 Engineer lays Concrete. U-05 Engineer destroyed. The unstable cave ceiling collapses. K-01 Serf collects debris. Spread Laser destroyed. K-01 Serf collects debris. YI-UF0 mumbles something. K-01 Serf collects debris. Map ----- +----------------------------------------------------+ | ???### | #???????????????????????? | | ?????### !%= #???????????????????????? | | ???????## *# #???????????????????????? | | ????????## ### #??????????????????? | | ?????????# #??## #######??????????????????? | | ?????????# #???# ##????????????????????????? | | ?????????# ###?# #?????????????????????????? | | ?????????# #?# #?????????????????????????? | | ?????????# #?# #?###?????????????????????? | | ?????????## ### ## ##????????????????????? | | ??????????# ### #????????????????? | | ??????????# !%* #????????????????? | | ??????????####### ###### ?#???????????? | | ???????????????# ##??? ##?????????? | | ???????????????# ##???? ##????????? | | ???????????????# #????? #????????? | | ?????????????### #????? #????????? | | ?????????????? #????# #????????? | | ??????????????# #???# ?????????? | | ?????????????## ##?? ??????????? | | ???????????### ## """??????????? | | ???????????# # """??????????? | | ???????????# # """ #????? | | ???????????# ! """ #???? | | ???????????# ! ?????? | | ???????????# @ = % #????????????? | | ???????????### % t##????????????? | | ?????????###### g #?????????????? | | ????????## ### #?????????????? | | ???????## # ###?? ##?????????????? | | ????#### = #### #??????????????? | | ???## [k = ##?????????????? | | ??## % ??????????? | | ??# ! #### #####??????????? | | ??# ######## ############???? | | ??# ??# #???? | | ??## #?# #### #### ##### #???? | | ???### = == ### #### ##?# #???# #???? | | ?????## ## * ## ### #???# #???? | | ??????## #?## #### %= ## #???# #???? | | ???????###???# ##??## ! ##??# #???? | | ?????????????# ##????## #??# #???# | | ?????????????# ###??????# ##?# ##### | | ?????????????# #????????## ### | | ?????????????#%=#?????????### ####### | | ?????????????#*=#???????????##% #?????## | | ?????????????# %#????####????# ##??????# | | ?????????????#! #???## ##???# ##???????? | | ???????????### ""#?## # ##??# ##????????? | | ??????????### ##### !#??# ##?????????? | +----------------------------------------------------+ Best States ------------- Heat Dissipation 35 Energy Generation 12 Energy Capacity 265 Matter Stores 300 Matter Capacity 300 Sight Range 16 Terrain Scan Range 16 Terrain Scan Density 60 Evasion (%) 44 Item Schematics ----------------- None Robot Schematics ------------------ None Fabricated ------------ Nothing Alien Tech Used ----------------- None Achievements -------------- Brute Force Quantum Hacking root@ Challenges ------------ None Game ------ Seed NetworkSmallWheel Manual? 0 Play Time 00:22:00 Cumulative 24.4 hours Start 2020.07.10 @ 04:28:20 End 2020.07.10 @ 04:48:41 Sessions 1 Manual Loads 0 Difficulty Rogue Special Mode None Game No. 16 Rogue 16 Adventurer 0 Explorer 0 Win Type - Total 0 Types 0/0/0/0/0/0/0 Lore% 37 Gallery% 33 Achievement% 28 Wizard Run 0 Options --------- ASCII 0 Keyboard 0 Movement Numpad Keybinds 0 Fullscreen 2 Font 18/TerminusBold Map View 76x50 Tactical HUD 0 Map Filters NONE Filters NONE Steam 1 RUN: 1b201b15-6203-4d4b-ac00-8906104e95d6